[Event "Early Titled Tuesday Blitz | February 8 2022"]
[White "Papasimakopoulos, Alexandros"]
[Black "Timofeev, Artyom"]
[WhiteFideId "4244125"]
[BlackFideId "4140419"]
[WhiteElo "2340"]
[BlackElo "2583"]
[Result "1/2-1/2"]
[Round "06"]
[TimeControl "180+1"]
[Date "2022.02.08"]
[WhiteClock "0:00:56"]
[BlackClock "0:00:54"]

1. d4 {[%clk 0:03:00]}  d5 {[%clk 0:02:59]} 2. c4 {[%clk 0:02:59]}  e6 {[%clk 0:02:59]} 3. Nc3 {[%clk 0:02:58]}  c6 {[%clk 0:02:59]} 4. e3 {[%clk 0:02:58]}  Nf6 {[%clk 0:02:58]} 5. Qc2 {[%clk 0:02:57]}  Bd6 {[%clk 0:02:55]} 6. Nf3 {[%clk 0:02:58]}  O-O {[%clk 0:02:54]} 7. Bd3 {[%clk 0:02:58]}  Nbd7 {[%clk 0:02:48]} 8. O-O {[%clk 0:02:58]}  Re8 {[%clk 0:02:37]} 9. e4 {[%clk 0:02:57]}  dxc4 {[%clk 0:02:37]} 10. Bxc4 {[%clk 0:02:58]}  e5 {[%clk 0:02:34]} 11. Rd1 {[%clk 0:02:53]}  Qe7 {[%clk 0:02:32]} 12. Bg5 {[%clk 0:02:40]}  h6 {[%clk 0:02:28]} 13. Bh4 {[%clk 0:02:40]}  exd4 {[%clk 0:02:27]} 14. Rxd4 {[%clk 0:02:39]}  Ne5 {[%clk 0:02:25]} 15. Bg3 {[%clk 0:02:27]}  Nxf3+ {[%clk 0:02:21]} 16. gxf3 {[%clk 0:02:28]}  Be5 {[%clk 0:02:20]} 17. Rd2 {[%clk 0:02:25]}  Nh5 {[%clk 0:02:18]} 18. Ne2 {[%clk 0:02:22]}  Qf6 {[%clk 0:02:11]} 19. Kg2 {[%clk 0:02:16]}  Nf4+ {[%clk 0:01:42]} 20. Nxf4 {[%clk 0:02:14]}  Bxf4 {[%clk 0:01:42]} 21. Rd3 {[%clk 0:02:06]}  h5 {[%clk 0:01:33]} 22. h4 {[%clk 0:01:53]}  Be6 {[%clk 0:01:26]} 23. Bxe6 {[%clk 0:01:52]}  Rxe6 {[%clk 0:01:26]} 24. Rad1 {[%clk 0:01:51]}  g5 {[%clk 0:01:19]} 25. Qc3 {[%clk 0:01:42]}  Be5 {[%clk 0:01:16]} 26. Bxe5 {[%clk 0:01:40]}  Rxe5 {[%clk 0:01:16]} 27. Rd8+ {[%clk 0:01:32]}  Rxd8 {[%clk 0:01:14]} 28. Rxd8+ {[%clk 0:01:33]}  Kg7 {[%clk 0:01:14]} 29. hxg5 {[%clk 0:01:16]}  Qxg5+ {[%clk 0:01:07]} 30. Kf1 {[%clk 0:01:16]}  Qxd8 {[%clk 0:00:58]} 31. Qxe5+ {[%clk 0:01:16]}  Qf6 {[%clk 0:00:59]} 32. Qxh5 {[%clk 0:01:10]}  Qxb2 {[%clk 0:00:59]} 33. Qg5+ {[%clk 0:01:09]}  Kh7 {[%clk 0:00:55]} 34. Qh5+ {[%clk 0:01:05]}  Kg7 {[%clk 0:00:54]} 35. Qg5+ {[%clk 0:01:02]}  Kh7 {[%clk 0:00:54]} 36. Qh5+ {[%clk 0:00:56]}  Kg7 {[%clk 0:00:54]} 1/2-1/2


[Site "https://www.chess.com"]

[Event "Early Titled Tuesday Blitz | February 8 2022"]
[White "Pavlidou, Ekaterini"]
[Black "Dauner, Benedikt"]
[WhiteFideId "4213262"]
[BlackFideId "16225899"]
[WhiteElo "2127"]
[BlackElo "2230"]
[Result "0-1"]
[Round "06"]
[TimeControl "180+1"]
[Date "2022.02.08"]
[WhiteClock "0:00:09"]
[BlackClock "0:00:07"]

1. d4 {[%clk 0:03:00]}  d6 {[%clk 0:02:58]} 2. e4 {[%clk 0:02:58]}  Nc6 {[%clk 0:02:57]} 3. c3 {[%clk 0:02:58]}  Nf6 {[%clk 0:02:57]} 4. Bd3 {[%clk 0:02:57]}  g6 {[%clk 0:02:56]} 5. Ne2 {[%clk 0:02:57]}  Bg7 {[%clk 0:02:57]} 6. Bg5 {[%clk 0:02:53]}  O-O {[%clk 0:02:57]} 7. Nd2 {[%clk 0:02:53]}  e5 {[%clk 0:02:56]} 8. d5 {[%clk 0:02:52]}  Ne7 {[%clk 0:02:54]} 9. f3 {[%clk 0:02:52]}  h6 {[%clk 0:02:52]} 10. Bh4 {[%clk 0:02:49]}  c6 {[%clk 0:02:46]} 11. c4 {[%clk 0:02:48]}  Kh7 {[%clk 0:02:37]} 12. Nf1 {[%clk 0:02:47]}  Nd7 {[%clk 0:02:21]} 13. g4 {[%clk 0:02:45]}  Nc5 {[%clk 0:02:18]} 14. Bc2 {[%clk 0:02:45]}  a5 {[%clk 0:02:10]} 15. Ne3 {[%clk 0:02:44]}  Qc7 {[%clk 0:01:57]} 16. Qd2 {[%clk 0:02:43]}  Ng8 {[%clk 0:01:52]} 17. Bf2 {[%clk 0:02:39]}  Ne7 {[%clk 0:01:41]} 18. h4 {[%clk 0:02:39]}  cxd5 {[%clk 0:01:36]} 19. cxd5 {[%clk 0:02:33]}  Kg8 {[%clk 0:01:29]} 20. h5 {[%clk 0:02:30]}  g5 {[%clk 0:01:25]} 21. Ng3 {[%clk 0:02:28]}  Qb6 {[%clk 0:01:21]} 22. Rb1 {[%clk 0:02:21]}  Qb4 {[%clk 0:01:18]} 23. a3 {[%clk 0:02:16]}  Qxd2+ {[%clk 0:01:18]} 24. Kxd2 {[%clk 0:02:16]}  b6 {[%clk 0:01:17]} 25. Nc4 {[%clk 0:02:12]}  Rd8 {[%clk 0:01:07]} 26. Nxb6 {[%clk 0:02:10]}  Rb8 {[%clk 0:01:05]} 27. Nc4 {[%clk 0:02:08]}  Nb3+ {[%clk 0:01:00]} 28. Bxb3 {[%clk 0:01:52]}  Rxb3 {[%clk 0:01:01]} 29. Nxa5 {[%clk 0:01:51]}  Rxf3 {[%clk 0:01:01]} 30. Ke2 {[%clk 0:01:51]}  Rf4 {[%clk 0:00:55]} 31. b4 {[%clk 0:01:50]}  Bxg4+ {[%clk 0:00:54]} 32. Ke1 {[%clk 0:01:37]}  Rc8 {[%clk 0:00:54]} 33. Be3 {[%clk 0:01:19]}  Rf3 {[%clk 0:00:50]} 34. Nf1 {[%clk 0:01:19]}  Rc2 {[%clk 0:00:47]} 35. Rg1 {[%clk 0:01:04]}  Bxh5 {[%clk 0:00:45]} 36. Bd2 {[%clk 0:00:55]}  Nc8 {[%clk 0:00:39]} 37. Nc6 {[%clk 0:00:49]}  Bf8 {[%clk 0:00:35]} 38. Ng3 {[%clk 0:00:43]}  Bg6 {[%clk 0:00:33]} 39. b5 {[%clk 0:00:32]}  Nb6 {[%clk 0:00:30]} 40. Bb4 {[%clk 0:00:19]}  h5 {[%clk 0:00:21]} 41. Ne2 {[%clk 0:00:18]}  Re3 {[%clk 0:00:17]} 42. Rg2 {[%clk 0:00:18]}  g4 {[%clk 0:00:14]} 43. Kd1 {[%clk 0:00:15]}  Ra2 {[%clk 0:00:13]} 44. Rg3 {[%clk 0:00:14]}  Raxe2 {[%clk 0:00:12]} 45. Rxe3 {[%clk 0:00:14]}  Rxe3 {[%clk 0:00:12]} 46. Kd2 {[%clk 0:00:15]}  Rxe4 {[%clk 0:00:12]} 47. Ba5 {[%clk 0:00:15]}  Nc4+ {[%clk 0:00:10]} 48. Kc2 {[%clk 0:00:15]}  Nxa5 {[%clk 0:00:10]} 49. Nxa5 {[%clk 0:00:14]}  Re2+ {[%clk 0:00:10]} 50. Kd1 {[%clk 0:00:13]}  Ra2 {[%clk 0:00:09]} 51. Rb4 {[%clk 0:00:12]}  Rxa3 {[%clk 0:00:09]} 52. b6 {[%clk 0:00:12]}  Ra1+ {[%clk 0:00:08]} 53. Kd2 {[%clk 0:00:12]}  g3 {[%clk 0:00:08]} 54. b7 {[%clk 0:00:11]}  g2 {[%clk 0:00:08]} 55. b8=Q {[%clk 0:00:11]}  g1=Q {[%clk 0:00:09]} 56. Qa8 {[%clk 0:00:09]}  Qd1+ {[%clk 0:00:08]} 57. Kc3 {[%clk 0:00:09]}  Qd3+ {[%clk 0:00:08]} 58. Kb2 {[%clk 0:00:09]}  Rb1+ {[%clk 0:00:06]} 59. Ka2 {[%clk 0:00:09]}  Qc2+ {[%clk 0:00:06]} 60. Ka3 {[%clk 0:00:09]}  Ra1# {[%clk 0:00:07]} 0-1


[Site "https://www.chess.com"]

[Event "Early Titled Tuesday Blitz | February 8 2022"]
[White "Petesch, Gabriel"]
[Black "Tay, Junior"]
[WhiteFideId "2032465"]
[BlackFideId "5800439"]
[WhiteElo "2374"]
[BlackElo "2216"]
[Result "1-0"]
[Round "06"]
[TimeControl "180+1"]
[Date "2022.02.08"]
[WhiteClock "0:01:02"]
[BlackClock "0:00:02"]

1. Nf3 {[%clk 0:03:00]}  Nf6 {[%clk 0:02:59]} 2. e3 {[%clk 0:03:00]}  g6 {[%clk 0:02:59]} 3. c4 {[%clk 0:02:59]}  Bg7 {[%clk 0:02:59]} 4. Nc3 {[%clk 0:02:59]}  O-O {[%clk 0:03:00]} 5. b3 {[%clk 0:02:59]}  d6 {[%clk 0:03:01]} 6. Bb2 {[%clk 0:02:59]}  Nbd7 {[%clk 0:03:02]} 7. Be2 {[%clk 0:02:59]}  e5 {[%clk 0:03:01]} 8. O-O {[%clk 0:02:58]}  Re8 {[%clk 0:03:01]} 9. d4 {[%clk 0:02:57]}  e4 {[%clk 0:03:01]} 10. Nd2 {[%clk 0:02:57]}  Nf8 {[%clk 0:03:00]} 11. Qc2 {[%clk 0:02:55]}  Bf5 {[%clk 0:02:59]} 12. d5 {[%clk 0:02:49]}  h5 {[%clk 0:02:56]} 13. Nb5 {[%clk 0:02:48]}  Qd7 {[%clk 0:02:52]} 14. Nd4 {[%clk 0:02:47]}  Bg4 {[%clk 0:02:46]} 15. Rae1 {[%clk 0:02:26]}  N8h7 {[%clk 0:02:41]} 16. f3 {[%clk 0:02:18]}  exf3 {[%clk 0:02:38]} 17. Bxf3 {[%clk 0:02:19]}  Ng5 {[%clk 0:02:34]} 18. Bxg4 {[%clk 0:02:17]}  Qxg4 {[%clk 0:02:27]} 19. Nb5 {[%clk 0:02:09]}  Re7 {[%clk 0:02:24]} 20. Bxf6 {[%clk 0:02:07]}  Bxf6 {[%clk 0:02:23]} 21. Rxf6 {[%clk 0:02:05]}  Rae8 {[%clk 0:02:04]} 22. Nf1 {[%clk 0:02:04]}  h4 {[%clk 0:01:45]} 23. Kh1 {[%clk 0:01:59]}  Ne4 {[%clk 0:01:26]} 24. Rf4 {[%clk 0:01:57]}  Qh5 {[%clk 0:01:19]} 25. Nc3 {[%clk 0:01:51]}  Ng5 {[%clk 0:01:10]} 26. Qe2 {[%clk 0:01:47]}  Qh6 {[%clk 0:01:08]} 27. Qg4 {[%clk 0:01:47]}  f5 {[%clk 0:01:05]} 28. Qxh4 {[%clk 0:01:46]}  Qxh4 {[%clk 0:01:00]} 29. Rxh4 {[%clk 0:01:46]}  Kg7 {[%clk 0:00:58]} 30. Rd4 {[%clk 0:01:46]}  Kf6 {[%clk 0:00:56]} 31. b4 {[%clk 0:01:45]}  Rh7 {[%clk 0:00:52]} 32. c5 {[%clk 0:01:45]}  Reh8 {[%clk 0:00:50]} 33. Kg1 {[%clk 0:01:41]}  Nf7 {[%clk 0:00:47]} 34. cxd6 {[%clk 0:01:40]}  cxd6 {[%clk 0:00:47]} 35. e4 {[%clk 0:01:40]}  f4 {[%clk 0:00:45]} 36. b5 {[%clk 0:01:38]}  Ne5 {[%clk 0:00:44]} 37. Rd2 {[%clk 0:01:36]}  Rc8 {[%clk 0:00:42]} 38. Nd1 {[%clk 0:01:36]}  g5 {[%clk 0:00:35]} 39. Nf2 {[%clk 0:01:35]}  Rc3 {[%clk 0:00:33]} 40. h3 {[%clk 0:01:29]}  f3 {[%clk 0:00:30]} 41. Ng4+ {[%clk 0:01:27]}  Nxg4 {[%clk 0:00:23]} 42. hxg4 {[%clk 0:01:28]}  Ke5 {[%clk 0:00:20]} 43. gxf3 {[%clk 0:01:27]}  Rxf3 {[%clk 0:00:20]} 44. Rf2 {[%clk 0:01:27]}  Kf4 {[%clk 0:00:16]} 45. Rxf3+ {[%clk 0:01:27]}  Kxf3 {[%clk 0:00:16]} 46. e5 {[%clk 0:01:24]}  dxe5 {[%clk 0:00:12]} 47. Rxe5 {[%clk 0:01:25]}  Kxg4 {[%clk 0:00:11]} 48. Kg2 {[%clk 0:01:08]}  Rc7 {[%clk 0:00:04]} 49. Ng3 {[%clk 0:01:02]}  Rc3 {[%clk 0:00:02]} 50. Re4# {[%clk 0:01:02]} 1-0


[Site "https://www.chess.com"]

[Event "Early Titled Tuesday Blitz | February 8 2022"]
[White "Pinheiro, Iung Alicio de O."]
[Black "Buscar, Michael"]
[WhiteFideId "2104350"]
[BlackFideId "2603616"]
[WhiteElo "2594"]
[BlackElo "2010"]
[Result "1-0"]
[Round "06"]
[TimeControl "180+1"]
[Date "2022.02.08"]
[WhiteClock "0:00:08"]
[BlackClock "0:00:01"]

1. e4 {[%clk 0:02:58]}  c5 {[%clk 0:02:58]} 2. Nf3 {[%clk 0:02:58]}  e6 {[%clk 0:02:59]} 3. c3 {[%clk 0:02:58]}  Nf6 {[%clk 0:02:55]} 4. e5 {[%clk 0:02:57]}  Nd5 {[%clk 0:02:55]} 5. Bc4 {[%clk 0:02:57]}  Nb6 {[%clk 0:02:50]} 6. Bb3 {[%clk 0:02:56]}  c4 {[%clk 0:02:45]} 7. Bc2 {[%clk 0:02:56]}  d6 {[%clk 0:02:44]} 8. exd6 {[%clk 0:02:48]}  Bxd6 {[%clk 0:02:42]} 9. b3 {[%clk 0:02:44]}  cxb3 {[%clk 0:02:28]} 10. axb3 {[%clk 0:02:43]}  Nc6 {[%clk 0:02:27]} 11. Qe2 {[%clk 0:02:41]}  Ne7 {[%clk 0:02:26]} 12. d4 {[%clk 0:02:35]}  Ng6 {[%clk 0:02:22]} 13. O-O {[%clk 0:02:27]}  O-O {[%clk 0:02:22]} 14. g3 {[%clk 0:02:17]}  Bd7 {[%clk 0:02:21]} 15. Na3 {[%clk 0:02:13]}  Qc7 {[%clk 0:02:07]} 16. Nc4 {[%clk 0:02:08]}  Nxc4 {[%clk 0:02:03]} 17. bxc4 {[%clk 0:02:08]}  Bc6 {[%clk 0:02:02]} 18. Ng5 {[%clk 0:02:03]}  Be7 {[%clk 0:01:53]} 19. Ne4 {[%clk 0:01:25]}  a5 {[%clk 0:01:45]} 20. h4 {[%clk 0:01:23]}  Rfd8 {[%clk 0:01:38]} 21. h5 {[%clk 0:01:22]}  Nf8 {[%clk 0:01:38]} 22. h6 {[%clk 0:01:22]}  g6 {[%clk 0:01:33]} 23. Bf4 {[%clk 0:01:20]}  Qc8 {[%clk 0:01:15]} 24. Be5 {[%clk 0:01:13]}  Nd7 {[%clk 0:01:13]} 25. Bd6 {[%clk 0:00:50]}  Bf8 {[%clk 0:00:47]} 26. Bxf8 {[%clk 0:00:49]}  Rxf8 {[%clk 0:00:42]} 27. Nd6 {[%clk 0:00:45]}  Qc7 {[%clk 0:00:38]} 28. c5 {[%clk 0:00:44]}  Bd5 {[%clk 0:00:20]} 29. Ba4 {[%clk 0:00:39]}  Nf6 {[%clk 0:00:18]} 30. Qe5 {[%clk 0:00:37]}  Qe7 {[%clk 0:00:11]} 31. g4 {[%clk 0:00:27]}  Bc6 {[%clk 0:00:05]} 32. Bxc6 {[%clk 0:00:23]}  bxc6 {[%clk 0:00:05]} 33. g5 {[%clk 0:00:24]}  Nh5 {[%clk 0:00:06]} 34. Ne4 {[%clk 0:00:18]}  f6 {[%clk 0:00:05]} 35. gxf6 {[%clk 0:00:18]}  Nxf6 {[%clk 0:00:05]} 36. Ng5 {[%clk 0:00:18]}  Nd5 {[%clk 0:00:04]} 37. Qxe6+ {[%clk 0:00:13]}  Qxe6 {[%clk 0:00:03]} 38. Nxe6 {[%clk 0:00:14]}  Rf6 {[%clk 0:00:04]} 39. Rfe1 {[%clk 0:00:12]}  Nxc3 {[%clk 0:00:03]} 40. Nc7 {[%clk 0:00:07]}  Rc8 {[%clk 0:00:02]} 41. Ne8 {[%clk 0:00:07]}  Rf8 {[%clk 0:00:02]} 42. Nd6 {[%clk 0:00:08]}  Ra8 {[%clk 0:00:02]} 43. Re7 {[%clk 0:00:08]}  a4 {[%clk 0:00:02]} 44. Rg7+ {[%clk 0:00:08]}  Kh8 {[%clk 0:00:02]} 45. Nf7+ {[%clk 0:00:08]}  Rxf7 {[%clk 0:00:02]} 46. Rxf7 {[%clk 0:00:09]}  a3 {[%clk 0:00:03]} 47. Rxa3 {[%clk 0:00:08]}  Ne2+ {[%clk 0:00:02]} 48. Kf1 {[%clk 0:00:08]}  Re8 {[%clk 0:00:02]} 49. Re3 {[%clk 0:00:08]}  Rxe3 {[%clk 0:00:01]} 50. Rf8# {[%clk 0:00:08]} 1-0


[Site "https://www.chess.com"]

[Event "Early Titled Tuesday Blitz | February 8 2022"]
[White "Pires, Marcos Vinicius Torsani"]
[Black "Shyaamnikhil P"]
[WhiteFideId "2118939"]
[BlackFideId "5024218"]
[WhiteElo "2273"]
[BlackElo "2292"]
[Result "0-1"]
[Round "06"]
[TimeControl "180+1"]
[Date "2022.02.08"]
[WhiteClock "0:00:11"]
[BlackClock "0:00:02"]

1. d4 {[%clk 0:03:00]}  Nf6 {[%clk 0:02:59]} 2. Bf4 {[%clk 0:02:59]}  Nh5 {[%clk 0:02:56]} 3. Bc1 {[%clk 0:02:57]}  g6 {[%clk 0:02:54]} 4. e4 {[%clk 0:02:57]}  d6 {[%clk 0:02:54]} 5. Nc3 {[%clk 0:02:51]}  c6 {[%clk 0:02:51]} 6. a4 {[%clk 0:02:50]}  Bg7 {[%clk 0:02:45]} 7. Nf3 {[%clk 0:02:31]}  O-O {[%clk 0:02:40]} 8. Be2 {[%clk 0:02:30]}  Nf6 {[%clk 0:02:40]} 9. h3 {[%clk 0:02:28]}  a5 {[%clk 0:02:36]} 10. O-O {[%clk 0:02:27]}  Qc7 {[%clk 0:02:33]} 11. Be3 {[%clk 0:02:27]}  Nbd7 {[%clk 0:02:31]} 12. Qd2 {[%clk 0:02:27]}  Re8 {[%clk 0:02:30]} 13. Rad1 {[%clk 0:02:27]}  b6 {[%clk 0:02:24]} 14. Rfe1 {[%clk 0:02:25]}  Bb7 {[%clk 0:02:23]} 15. Bf1 {[%clk 0:02:15]}  Rad8 {[%clk 0:02:18]} 16. Qc1 {[%clk 0:02:15]}  e5 {[%clk 0:02:17]} 17. d5 {[%clk 0:02:08]}  Nc5 {[%clk 0:02:15]} 18. Bxc5 {[%clk 0:01:56]}  bxc5 {[%clk 0:02:11]} 19. dxc6 {[%clk 0:01:52]}  Bxc6 {[%clk 0:02:12]} 20. Bb5 {[%clk 0:01:52]}  Bxb5 {[%clk 0:01:50]} 21. axb5 {[%clk 0:01:42]}  Qb7 {[%clk 0:01:39]} 22. Nd2 {[%clk 0:01:37]}  d5 {[%clk 0:01:36]} 23. exd5 {[%clk 0:01:33]}  Nxd5 {[%clk 0:01:36]} 24. Nxd5 {[%clk 0:01:34]}  Rxd5 {[%clk 0:01:35]} 25. c4 {[%clk 0:01:31]}  Rd3 {[%clk 0:01:24]} 26. Ne4 {[%clk 0:01:26]}  Rxd1 {[%clk 0:00:54]} 27. Qxd1 {[%clk 0:01:26]}  Qc7 {[%clk 0:00:51]} 28. Qd5 {[%clk 0:01:22]}  Rd8 {[%clk 0:00:48]} 29. Qxc5 {[%clk 0:01:21]}  Qxc5 {[%clk 0:00:47]} 30. Nxc5 {[%clk 0:01:22]}  Rc8 {[%clk 0:00:48]} 31. Nb7 {[%clk 0:00:56]}  Rxc4 {[%clk 0:00:44]} 32. Nxa5 {[%clk 0:00:55]}  Rb4 {[%clk 0:00:43]} 33. Nc6 {[%clk 0:00:39]}  Rxb5 {[%clk 0:00:43]} 34. b4 {[%clk 0:00:38]}  Rb6 {[%clk 0:00:21]} 35. Ne7+ {[%clk 0:00:35]}  Kf8 {[%clk 0:00:20]} 36. Nd5 {[%clk 0:00:36]}  Rb5 {[%clk 0:00:20]} 37. Rd1 {[%clk 0:00:34]}  e4 {[%clk 0:00:21]} 38. Kf1 {[%clk 0:00:29]}  f5 {[%clk 0:00:21]} 39. Ke2 {[%clk 0:00:29]}  Be5 {[%clk 0:00:20]} 40. f3 {[%clk 0:00:25]}  exf3+ {[%clk 0:00:19]} 41. Kxf3 {[%clk 0:00:26]}  Kf7 {[%clk 0:00:19]} 42. Ke3 {[%clk 0:00:18]}  Ke6 {[%clk 0:00:19]} 43. Nf4+ {[%clk 0:00:15]}  Bxf4+ {[%clk 0:00:19]} 44. Kxf4 {[%clk 0:00:16]}  Rxb4+ {[%clk 0:00:19]} 45. Kf3 {[%clk 0:00:16]}  Kf6 {[%clk 0:00:19]} 46. Rd7 {[%clk 0:00:17]}  h5 {[%clk 0:00:18]} 47. Ra7 {[%clk 0:00:17]}  h4 {[%clk 0:00:18]} 48. Ra6+ {[%clk 0:00:17]}  Kg5 {[%clk 0:00:18]} 49. Rc6 {[%clk 0:00:18]}  Rf4+ {[%clk 0:00:18]} 50. Ke3 {[%clk 0:00:17]}  Rf1 {[%clk 0:00:18]} 51. Ke2 {[%clk 0:00:17]}  Ra1 {[%clk 0:00:16]} 52. Rc4 {[%clk 0:00:17]}  Ra2+ {[%clk 0:00:15]} 53. Kf3 {[%clk 0:00:18]}  Ra3+ {[%clk 0:00:15]} 54. Kf2 {[%clk 0:00:18]}  Kh5 {[%clk 0:00:14]} 55. Rc8 {[%clk 0:00:16]}  Ra2+ {[%clk 0:00:13]} 56. Kf3 {[%clk 0:00:16]}  Ra3+ {[%clk 0:00:14]} 57. Kf2 {[%clk 0:00:17]}  Ra4 {[%clk 0:00:13]} 58. Rc7 {[%clk 0:00:17]}  Kg5 {[%clk 0:00:13]} 59. Rc3 {[%clk 0:00:16]}  Kf4 {[%clk 0:00:12]} 60. Rf3+ {[%clk 0:00:14]}  Ke5 {[%clk 0:00:12]} 61. Re3+ {[%clk 0:00:15]}  Re4 {[%clk 0:00:12]} 62. Ra3 {[%clk 0:00:15]}  Rd4 {[%clk 0:00:12]} 63. Ra6 {[%clk 0:00:14]}  g5 {[%clk 0:00:11]} 64. Ra3 {[%clk 0:00:13]}  g4 {[%clk 0:00:09]} 65. hxg4 {[%clk 0:00:13]}  fxg4 {[%clk 0:00:09]} 66. Rb3 {[%clk 0:00:13]}  Kf4 {[%clk 0:00:09]} 67. Rb2 {[%clk 0:00:12]}  g3+ {[%clk 0:00:08]} 68. Ke2 {[%clk 0:00:12]}  Re4+ {[%clk 0:00:06]} 69. Kf1 {[%clk 0:00:11]}  Ra4 {[%clk 0:00:04]} 70. Rb1 {[%clk 0:00:11]}  Ra2 {[%clk 0:00:02]} 71. Rb4+ {[%clk 0:00:11]}  Ke3 {[%clk 0:00:02]} 72. Rb3+ {[%clk 0:00:11]}  Kd2 {[%clk 0:00:02]} 73. Rb1 {[%clk 0:00:10]}  Rc2 {[%clk 0:00:02]} 74. Ra1 {[%clk 0:00:10]}  Kd3 {[%clk 0:00:01]} 75. Ra3+ {[%clk 0:00:10]}  Kd2 {[%clk 0:00:02]} 76. Ra1 {[%clk 0:00:11]}  Rb2 {[%clk 0:00:02]} 77. Re1 {[%clk 0:00:10]}  Rb4 {[%clk 0:00:02]} 78. Re2+ {[%clk 0:00:10]}  Kd3 {[%clk 0:00:02]} 79. Re1 {[%clk 0:00:10]}  Re4 {[%clk 0:00:02]} 80. Kg1 {[%clk 0:00:11]}  Rxe1# {[%clk 0:00:02]} 0-1


[Site "https://www.chess.com"]

[Event "Early Titled Tuesday Blitz | February 8 2022"]
[White "Ponkratov, Pavel"]
[Black "Srihari L R"]
[WhiteFideId "4157800"]
[BlackFideId "46617116"]
[WhiteElo "2487"]
[BlackElo "2121"]
[Result "0-1"]
[Round "06"]
[TimeControl "180+1"]
[Date "2022.02.08"]
[WhiteClock "0:00:29"]
[BlackClock "0:00:17"]

1. d4 {[%clk 0:03:00]}  d5 {[%clk 0:02:57]} 2. c4 {[%clk 0:03:00]}  e6 {[%clk 0:02:57]} 3. Nc3 {[%clk 0:03:00]}  Nf6 {[%clk 0:02:57]} 4. Bg5 {[%clk 0:03:00]}  Be7 {[%clk 0:02:56]} 5. cxd5 {[%clk 0:02:59]}  Nxd5 {[%clk 0:02:56]} 6. Bd2 {[%clk 0:03:00]}  c5 {[%clk 0:02:50]} 7. e4 {[%clk 0:02:53]}  Nxc3 {[%clk 0:02:46]} 8. Bxc3 {[%clk 0:02:53]}  cxd4 {[%clk 0:02:46]} 9. Qxd4 {[%clk 0:02:46]}  Qxd4 {[%clk 0:02:41]} 10. Bxd4 {[%clk 0:02:46]}  Bb4+ {[%clk 0:02:38]} 11. Ke2 {[%clk 0:02:47]}  O-O {[%clk 0:02:37]} 12. a3 {[%clk 0:02:47]}  Be7 {[%clk 0:02:35]} 13. f4 {[%clk 0:02:30]}  Nc6 {[%clk 0:02:33]} 14. Be3 {[%clk 0:02:30]}  b6 {[%clk 0:02:15]} 15. Nf3 {[%clk 0:02:29]}  Bb7 {[%clk 0:02:16]} 16. Kf2 {[%clk 0:02:29]}  Na5 {[%clk 0:02:15]} 17. b4 {[%clk 0:02:26]}  Nc6 {[%clk 0:02:10]} 18. Be2 {[%clk 0:02:24]}  Rfc8 {[%clk 0:02:04]} 19. Rhd1 {[%clk 0:02:23]}  Rc7 {[%clk 0:02:02]} 20. Rac1 {[%clk 0:02:17]}  Rac8 {[%clk 0:02:01]} 21. g4 {[%clk 0:02:13]}  Kf8 {[%clk 0:02:00]} 22. g5 {[%clk 0:02:10]}  Nb8 {[%clk 0:01:50]} 23. Rxc7 {[%clk 0:01:50]}  Rxc7 {[%clk 0:01:49]} 24. f5 {[%clk 0:01:45]}  Bxe4 {[%clk 0:01:39]} 25. Bf4 {[%clk 0:01:45]}  Rc8 {[%clk 0:01:37]} 26. fxe6 {[%clk 0:01:31]}  fxe6 {[%clk 0:01:32]} 27. Nd4 {[%clk 0:01:31]}  Bd5 {[%clk 0:01:06]} 28. Bg4 {[%clk 0:01:30]}  Kf7 {[%clk 0:00:55]} 29. Re1 {[%clk 0:01:24]}  Rc4 {[%clk 0:00:34]} 30. Nxe6 {[%clk 0:00:56]}  Nc6 {[%clk 0:00:34]} 31. Kg3 {[%clk 0:00:42]}  Rc3+ {[%clk 0:00:30]} 32. Kh4 {[%clk 0:00:42]}  Rc4 {[%clk 0:00:30]} 33. Nc7 {[%clk 0:00:33]}  Rxf4 {[%clk 0:00:18]} 34. Nxd5 {[%clk 0:00:33]}  Rd4 {[%clk 0:00:18]} 35. Kg3 {[%clk 0:00:31]}  Bd6+ {[%clk 0:00:17]} 36. Kf3 {[%clk 0:00:30]}  Ne5+ {[%clk 0:00:17]} 37. Rxe5 {[%clk 0:00:29]}  Bxe5 {[%clk 0:00:17]} 38. Ne3 {[%clk 0:00:27]}  Rf4+ {[%clk 0:00:18]} 39. Ke2 {[%clk 0:00:27]}  Bd4 {[%clk 0:00:17]} 40. Bf3 {[%clk 0:00:27]}  Bxe3 {[%clk 0:00:16]} 41. Kxe3 {[%clk 0:00:28]}  Rh4 {[%clk 0:00:17]} 42. Bd5+ {[%clk 0:00:28]}  Ke7 {[%clk 0:00:17]} 43. Be4 {[%clk 0:00:28]}  Rxh2 {[%clk 0:00:17]} 44. Kf4 {[%clk 0:00:29]}  Rh4+ {[%clk 0:00:17]} 45. Ke5 {[%clk 0:00:29]}  Rh5 {[%clk 0:00:17]} 0-1


[Site "https://www.chess.com"]

[Event "Early Titled Tuesday Blitz | February 8 2022"]
[White "Potapova, Margarita"]
[Black "Ter-Sahakyan, Samvel"]
[WhiteFideId "14126869"]
[BlackFideId "13302531"]
[WhiteElo "2209"]
[BlackElo "2592"]
[Result "1-0"]
[Round "06"]
[TimeControl "180+1"]
[Date "2022.02.08"]
[WhiteClock "0:00:49"]
[BlackClock "0:00:03"]

1. d4 {[%clk 0:03:00]}  Nf6 {[%clk 0:02:59]} 2. c4 {[%clk 0:03:00]}  e6 {[%clk 0:02:59]} 3. Nc3 {[%clk 0:03:00]}  Bb4 {[%clk 0:02:58]} 4. Qc2 {[%clk 0:03:01]}  d5 {[%clk 0:02:54]} 5. cxd5 {[%clk 0:03:00]}  exd5 {[%clk 0:02:54]} 6. Bg5 {[%clk 0:02:59]}  h6 {[%clk 0:02:53]} 7. Bh4 {[%clk 0:02:59]}  O-O {[%clk 0:02:53]} 8. e3 {[%clk 0:02:58]}  Be6 {[%clk 0:02:50]} 9. Bd3 {[%clk 0:02:57]}  c5 {[%clk 0:02:49]} 10. dxc5 {[%clk 0:02:56]}  Nbd7 {[%clk 0:02:48]} 11. a3 {[%clk 0:02:46]}  Bxc5 {[%clk 0:02:25]} 12. Nf3 {[%clk 0:02:45]}  Rc8 {[%clk 0:02:20]} 13. O-O {[%clk 0:02:44]}  Be7 {[%clk 0:02:20]} 14. Qe2 {[%clk 0:02:39]}  Nc5 {[%clk 0:02:13]} 15. Bc2 {[%clk 0:02:38]}  Qb6 {[%clk 0:02:10]} 16. Rfd1 {[%clk 0:02:29]}  Rfd8 {[%clk 0:02:10]} 17. Rac1 {[%clk 0:02:25]}  a6 {[%clk 0:01:45]} 18. Na4 {[%clk 0:02:17]}  Nxa4 {[%clk 0:01:43]} 19. Bxa4 {[%clk 0:02:18]}  Bg4 {[%clk 0:01:11]} 20. b4 {[%clk 0:01:59]}  g5 {[%clk 0:01:05]} 21. Bg3 {[%clk 0:01:58]}  Ne4 {[%clk 0:01:05]} 22. h3 {[%clk 0:01:56]}  Nc3 {[%clk 0:00:44]} 23. Rxc3 {[%clk 0:01:35]}  Bxf3 {[%clk 0:00:44]} 24. Qxf3 {[%clk 0:01:28]}  Rxc3 {[%clk 0:00:44]} 25. Be5 {[%clk 0:01:18]}  Rxa3 {[%clk 0:00:38]} 26. Bc2 {[%clk 0:01:19]}  Qe6 {[%clk 0:00:33]} 27. Bd4 {[%clk 0:01:16]}  Ra2 {[%clk 0:00:20]} 28. Bf5 {[%clk 0:01:15]}  Qd6 {[%clk 0:00:19]} 29. Bb1 {[%clk 0:01:12]}  Ra4 {[%clk 0:00:17]} 30. Qf5 {[%clk 0:01:09]}  Kf8 {[%clk 0:00:07]} 31. Qh7 {[%clk 0:01:07]}  Ke8 {[%clk 0:00:06]} 32. Bc5 {[%clk 0:00:52]}  Qf6 {[%clk 0:00:06]} 33. Qg8+ {[%clk 0:00:52]}  Kd7 {[%clk 0:00:06]} 34. Rxd5+ {[%clk 0:00:52]}  Kc6 {[%clk 0:00:05]} 35. Rxd8 {[%clk 0:00:51]}  Bxd8 {[%clk 0:00:05]} 36. Qe8+ {[%clk 0:00:52]}  Kc7 {[%clk 0:00:04]} 37. Qxa4 {[%clk 0:00:52]}  Qc3 {[%clk 0:00:03]} 38. Qd1 {[%clk 0:00:49]} 1-0


[Site "https://www.chess.com"]